fUST/lending_fUST_20260109
["ID","MTS","AMOUNT","RATE_DAILY","PERIOD"]
[401096319,1767924639861,-5500.0,0.00019178,2]
[401096321,1767924639870,-167.54,0.000192,2]
[401096323,1767924639879,-163.19,0.000192,2]
[401096325,1767924639888,-163.82,0.000192,2]
[401096327,1767924639897,-472.33290831,0.00019273,2]
[401096329,1767924639906,-151.0,0.000194,2]
[401096331,1767924639915,-151.0,0.000194,2]
[401096333,1767924639924,-500.0,0.00019472,2]
[401096335,1767924639933,-908.43,0.000195,2]
[401096336,1767924639943,-171.043074,0.00019635,2]
[401096338,1767924639952,-304.73943239,0.00019644,3]
[401096340,1767924639962,-1152.0,0.0001965,2]
[401096359,1767924639972,-2077.7719488,0.00019653,2]
[401096361,1767924640132,-6000.0,0.00019726,2]
[401096363,1767924640141,-11487.8011541,0.00019822,2]
[401096365,1767924640150,-100000.0,0.0001999,2]
[401096367,1767924640159,-300.55962197,0.0002,2]
[401096369,1767924640168,-6025.54871248,0.00020274,2]
[401096371,1767924640177,-151.0,0.000204,3]
[401096373,1767924640186,-151.0,0.000204,4]
[401096375,1767924640195,-1000.0,0.00020489,2]
[401096377,1767924640204,-244.0,0.00020489,2]
[401096379,1767924640214,-1001.83283,0.00020548,2]
[401096381,1767924640223,-3715.4218359,0.00020704,2]
[401096383,1767924640232,-420.2,0.00020711,2]
[401096384,1767924640241,-160.18626186,0.00020854,2]
[401096386,1767924640250,-221.941164,0.0002099,2]
[401096388,1767924640259,-221.941164,0.0002099,2]
[401096390,1767924640268,-221.941164,0.0002099,2]
[401096392,1767924640277,-221.941164,0.0002099,2]
[401096394,1767924640286,-151.0,0.00021,3]
[401096396,1767924640295,-527.54065084,0.00021273,2]
[401096398,1767924640304,-151.0,0.000214,4]
[401096400,1767924640312,-151.0,0.000214,3]
[401096402,1767924640321,-609.5866724,0.00021449,2]
[401096404,1767924640330,-500.0,0.00021459,2]
[401096406,1767924640339,-908.43,0.000215,2]
[401096408,1767924640348,-1257.0,0.00021536,2]
[401096410,1767924640357,-1163.6663153,0.00021594,2]
[401096412,1767924640366,-619.25363932,0.00021599,11]
[401096414,1767924640374,-666.4250319,0.00021636,2]
[401096416,1767924640384,-204.0,0.00021836,5]
[401096418,1767924640393,-420.2,0.00021848,2]
[401096419,1767924640402,-151.954666,0.00021918,2]
[401096421,1767924640411,-151.0,0.00021918,2]
[401096423,1767924640421,-151.0,0.00021918,2]
[401096425,1767924640430,-151.0,0.00021918,2]
[401096427,1767924640439,-151.0,0.00021918,2]
[401096429,1767924640449,-151.0,0.00021918,2]
[401096431,1767924640458,-154.600483,0.00021918,2]
[401096433,1767924640467,-151.0,0.00021918,2]
[401096435,1767924640478,-151.0,0.00021918,2]
[401096437,1767924640487,-151.0,0.00021918,2]
[401096439,1767924640496,-151.0,0.00021918,2]
[401096441,1767924640505,-159.186934,0.00021918,2]
[401096443,1767924640514,-151.0,0.00021918,2]
[401096445,1767924640524,-151.0,0.00021918,2]
[401096447,1767924640533,-151.0,0.00021918,2]
[401096449,1767924640541,-151.0,0.00021918,2]
[401096451,1767924640551,-289.689696,0.00021918,2]
[401096453,1767924640560,-151.0,0.00021918,2]
[401096455,1767924640569,-151.0,0.00021918,2]
[401096457,1767924640578,-151.0,0.00021918,2]
[401096459,1767924640587,-151.0,0.00021918,2]
[401096461,1767924640597,-1369.689816,0.00021918,2]
[401096463,1767924640606,-1369.689816,0.00021918,2]
[401096465,1767924640615,-1369.689816,0.00021918,2]
[401096467,1767924640624,-1914.381293,0.00021918,2]
[401096469,1767924640638,-1369.689816,0.00021918,2]
[401096471,1767924640649,-1914.381293,0.00021918,2]
[401096472,1767924640658,-1914.381293,0.00021918,2]
[401096474,1767924640667,-1914.381293,0.00021918,2]
[401096476,1767924640677,-151.174564,0.00021918,2]
[401096478,1767924640687,-606.371409,0.00021918,2]
[401096480,1767924640696,-606.371409,0.00021918,2]
[401096482,1767924640707,-606.371409,0.00021918,2]
[401096484,1767924640718,-606.371409,0.00021918,2]
[401096486,1767924640727,-239.59277,0.00021918,2]
[401096488,1767924640735,-152.0933846,0.00021918,2]
[401096490,1767924640744,-151.0,0.0002199,2]
[401096492,1767924640753,-264.224,0.0002199,2]
[401096494,1767924640761,-264.224,0.0002199,2]
[401096496,1767924640770,-151.0,0.0002199,2]
[401096498,1767924640779,-264.224,0.0002199,2]
[401096500,1767924640788,-264.224,0.0002199,2]
[401096502,1767924640797,-154.485794,0.0002199,2]
[401096504,1767924640805,-151.0,0.0002199,2]
[401096506,1767924640814,-151.0,0.0002199,2]
[401096508,1767924640823,-151.0,0.0002199,2]
[401096509,1767924640832,-151.0,0.0002199,2]
[401096511,1767924640841,-151.0,0.0002199,2]
[401096513,1767924640849,-151.0,0.0002199,2]
[401096515,1767924640858,-465.598169,0.0002199,2]
[401096517,1767924640867,-3684.236752,0.0002199,2]
[401096519,1767924640876,-465.598169,0.0002199,2]
[401096521,1767924640885,-3684.236752,0.0002199,2]
[401096523,1767924640894,-465.598169,0.0002199,2]
[401096525,1767924640903,-3684.236752,0.0002199,2]
[401096527,1767924640912,-465.598169,0.0002199,2]
[401096529,1767924640921,-3684.236752,0.0002199,2]
[401096531,1767924640930,-213.664329,0.0002199,2]
[401096533,1767924640939,-151.0,0.0002199,2]
[401096535,1767924640948,-154.949089,0.0002199,2]
[401096537,1767924640957,-626.530657,0.0002199,2]
[401096539,1767924640966,-626.530657,0.0002199,2]
[401096541,1767924640975,-626.530657,0.0002199,2]
[401096543,1767924640984,-626.530657,0.0002199,2]
[401096545,1767924640993,-151.0,0.0002199,2]
[401096547,1767924641001,-151.0,0.0002199,2]
[401096549,1767924641010,-519.17,0.00022,7]
[401096551,1767924641019,-1003.0,0.00022,2]
[401096552,1767924641028,-151.0,0.00022,6]
[401096554,1767924641037,-1094.074739,0.0002208,2]
[401096556,1767924641046,-30000.0,0.0002208,2]
[401096558,1767924641055,-151.0,0.0002208,2]
[401096560,1767924641064,-151.0,0.0002208,2]
[401096562,1767924641073,-311.1,0.0002208,2]
[401096564,1767924641082,-2030.296672,0.0002208,2]
[401096566,1767924641092,-151.0,0.0002208,2]
[401096568,1767924641100,-151.0,0.0002208,2]
[401096570,1767924641109,-1500.0,0.0002208,2]
[401096572,1767924641118,-151.0,0.0002208,2]
[401096574,1767924641128,-151.0,0.0002208,2]
[401096576,1767924641137,-1500.0,0.0002208,2]
[401096578,1767924641146,-151.0,0.0002208,2]
[401096580,1767924641156,-151.0,0.0002208,2]
[401096582,1767924641165,-1500.0,0.0002208,2]
[401096584,1767924641174,-151.0,0.0002208,2]
[401096586,1767924641182,-151.0,0.0002208,2]
[401096588,1767924641191,-1500.0,0.0002208,2]
[401096589,1767924641200,-151.0,0.0002208,2]
[401096591,1767924641209,-151.0,0.0002208,2]
[401096593,1767924641218,-1500.0,0.0002208,2]
[401096595,1767924641227,-151.0,0.0002208,2]
[401096597,1767924641236,-151.0,0.0002208,2]
[401096599,1767924641246,-478.75725327,0.0002208,2]
[401096601,1767924641255,-1500.0,0.0002208,2]
[401096603,1767924641264,-151.0,0.0002208,2]
[401096605,1767924641273,-151.0,0.0002208,2]
[401096607,1767924641281,-1500.0,0.0002208,2]
[401096609,1767924641290,-151.0,0.0002208,2]
[401096611,1767924641299,-151.0,0.0002208,2]
[401096613,1767924641308,-1297.78653774,0.0002208,2]
[401096615,1767924641317,-151.0,0.0002208,2]
[401096617,1767924641325,-250.0,0.0002208,2]
[401096619,1767924641334,-151.0,0.0002208,2]
[401096621,1767924641343,-151.0,0.0002208,2]
[401096623,1767924641352,-151.0,0.0002208,2]
[401096625,1767924641361,-251.51662048,0.0002208,2]
[401096627,1767924641369,-151.0,0.0002208,2]
[401096629,1767924641378,-151.0,0.0002208,2]
[401096631,1767924641387,-151.0,0.0002208,2]
[401096632,1767924641396,-250.0,0.0002208,2]
[401096634,1767924641406,-151.0,0.0002208,2]
[401096636,1767924641416,-250.0,0.0002208,2]
[401096638,1767924641425,-151.0,0.0002208,2]
[401096640,1767924641434,-151.0,0.0002208,2]
[401096642,1767924641443,-250.0,0.0002208,2]
[401096644,1767924641452,-151.0,0.0002208,2]
[401096646,1767924641463,-207.16925945,0.0002208,2]
[401096648,1767924641471,-250.0,0.0002208,2]
[401096650,1767924641480,-151.0,0.0002208,2]
[401096652,1767924641490,-250.0,0.0002208,2]
[401096654,1767924641499,-250.0,0.0002208,2]
[401096656,1767924641508,-151.0,0.0002208,2]
[401096658,1767924641517,-250.0,0.0002208,2]
[401096660,1767924641527,-250.0,0.0002208,2]
[401096662,1767924641536,-2312.83697232,0.0002208,2]
[401096664,1767924641545,-151.0,0.0002208,2]
[401096666,1767924641554,-250.0,0.0002208,2]
[401096668,1767924641564,-250.0,0.0002208,2]
[401096670,1767924641573,-250.0,0.0002208,2]
[401096672,1767924641582,-250.0,0.0002208,2]
[401096674,1767924641592,-151.2837254,0.0002208,2]
[401096676,1767924641601,-250.0,0.0002208,2]
[401096678,1767924641610,-151.0,0.0002208,2]
[401096680,1767924641619,-250.0,0.0002208,2]
[401096682,1767924641634,-250.0,0.0002208,2]
[401096684,1767924641644,-250.0,0.0002208,2]
[401096686,1767924641653,-151.27202647,0.0002208,2]
[401096688,1767924641663,-250.0,0.0002208,2]
[401096689,1767924641672,-250.0,0.0002208,2]
[401096690,1767924641681,-250.0,0.0002208,2]
[401096691,1767924641690,-250.0,0.0002208,2]
[401096692,1767924641699,-250.0,0.0002208,2]
[401096693,1767924641708,-250.0,0.0002208,2]
[401096694,1767924641718,-250.0,0.0002208,2]
[401096695,1767924641727,-250.0,0.0002208,2]
[401096696,1767924641735,-250.0,0.0002208,2]
[401096697,1767924641744,-250.0,0.0002208,2]
[401096698,1767924641754,-250.0,0.0002208,2]
[401096699,1767924641763,-250.0,0.0002208,2]
[401096700,1767924641773,-250.0,0.0002208,2]
[401096701,1767924641782,-250.0,0.0002208,2]
[401096702,1767924641791,-250.0,0.0002208,2]
[401096703,1767924641800,-250.0,0.0002208,2]
[401096704,1767924641808,-311.38298493,0.0002208,2]
[401096705,1767924641818,-250.0,0.0002208,2]
[401096706,1767924641826,-251.4518332,0.0002208,2]
[401096707,1767924641835,-250.0,0.0002208,2]
[401096708,1767924641844,-174.61919141,0.0002208,2]
[401096709,1767924641853,-500.0,0.0002208,2]
[401096710,1767924641863,-500.0,0.0002208,2]
[401096711,1767924641872,-500.0,0.0002208,2]
[401096712,1767924641881,-500.0,0.0002208,2]
[401096713,1767924641890,-613.39880693,0.0002208,2]
[401096714,1767924641899,-250.0,0.0002208,2]
[401096715,1767924641908,-250.0,0.0002208,2]
[401096716,1767924641918,-250.0,0.0002208,2]
[401096717,1767924641927,-255.89504653,0.0002208,2]
[401096718,1767924641936,-238.888002,0.00022135,2]
[401096719,1767924641945,-151.000013,0.00022135,2]
[401096720,1767924641954,-151.500212,0.00022135,2]
[401096721,1767924641964,-152.033783,0.00022135,2]
[401096722,1767924641973,-151.0,0.00022135,2]
[401096723,1767924641982,-151.0,0.00022135,2]
[401096724,1767924641991,-151.0,0.00022135,2]
[401096725,1767924642000,-151.0,0.00022135,2]
[401096726,1767924642008,-151.0,0.00022135,2]
[401096727,1767924642018,-193.232843,0.00022135,2]
[401096728,1767924642026,-151.0,0.00022135,2]
[401096729,1767924642035,-151.0,0.00022135,2]
[401096730,1767924642044,-151.0,0.00022135,2]
[401096732,1767924642053,-151.0,0.00022135,2]
[401096734,1767924642063,-151.0,0.00022135,2]
[401096735,1767924642072,-151.0,0.00022135,2]
[401096737,1767924642082,-151.0,0.00022135,2]
[401096740,1767924642091,-1369.689816,0.00022135,2]
[401096742,1767924642100,-1369.689816,0.00022135,2]
[401096744,1767924642109,-1369.689816,0.00022135,2]
[401096746,1767924642118,-1914.381293,0.00022135,2]
[401096748,1767924642127,-1369.689816,0.00022135,2]
[401096750,1767924642136,-1914.381293,0.00022135,2]
[401096752,1767924642145,-1914.381293,0.00022135,2]
[401096754,1767924642153,-1914.381293,0.00022135,2]
[401096755,1767924642162,-606.371409,0.00022135,2]
[401096757,1767924642171,-221.941164,0.00022135,2]
[401096759,1767924642180,-606.371409,0.00022135,2]
[401096761,1767924642189,-221.941164,0.00022135,2]
[401096763,1767924642198,-606.371409,0.00022135,2]
[401096765,1767924642207,-221.941164,0.00022135,2]
[401096767,1767924642216,-606.371409,0.00022135,2]
[401096769,1767924642225,-221.941164,0.00022135,2]
[401096771,1767924642234,-2105.41764886,0.00022135,2]
[401096773,1767924642243,-2183.31810187,0.0002219,2]
[401096775,1767924642252,-2264.10087164,0.00022245,2]
[401096777,1767924642261,-151.0,0.000223,7]
[401096779,1767924642270,-151.0,0.000223,7]
[401096781,1767924642279,-151.0,0.000223,5]
[401096783,1767924642288,-2347.87260389,0.000223,2]
[401096785,1767924642297,-2434.74389024,0.00022355,2]
[401096787,1767924642307,-172.18674375,0.00022386,2]
[401096789,1767924642316,-2524.82941417,0.0002241,2]
[401096791,1767924642326,-2000.51544348,0.00022413,2]
[401096793,1767924642336,-2618.2481025,0.00022465,2]
[401096795,1767924642345,-619.25363932,0.00022495,13]
[401096797,1767924642354,-558.36393728,0.0002252,2]
[401096800,1767924642363,-1000.0,0.00022537,10]
[401096803,1767924642372,-492.0,0.00022537,10]
[401096805,1767924642381,-500.0,0.00022537,2]
[401096807,1767924642390,-151.351106,0.00022628,2]
[401096809,1767924642399,-264.224,0.00022628,2]
[401096811,1767924642409,-264.224,0.00022628,2]
[401096813,1767924642418,-163.087098,0.00022628,2]
[401096815,1767924642427,-264.224,0.00022628,2]
[401096817,1767924642436,-264.224,0.00022628,2]
[401096819,1767924642445,-151.0,0.00022628,2]
[401096821,1767924642454,-151.0,0.00022628,2]
[401096823,1767924642463,-154.352473,0.00022628,2]
[401096825,1767924642472,-177.713908,0.00022628,2]
[401096827,1767924642481,-151.0,0.00022628,2]
[401096829,1767924642490,-151.0,0.00022628,2]
[401096831,1767924642499,-465.598169,0.00022628,2]
[401096833,1767924642509,-3684.236752,0.00022628,2]
[401096835,1767924642518,-465.598169,0.00022628,2]
[401096837,1767924642527,-3684.236752,0.00022628,2]
[401096839,1767924642536,-465.598169,0.00022628,2]
[401096841,1767924642545,-3684.236752,0.00022628,2]
[401096843,1767924642556,-465.598169,0.00022628,2]
[401096845,1767924642565,-3684.236752,0.00022628,2]
[401096847,1767924642575,-151.0,0.00022628,2]
[401096849,1767924642583,-626.530657,0.00022628,2]
[401096851,1767924642593,-626.530657,0.00022628,2]
[401096853,1767924642602,-626.530657,0.00022628,2]
[401096855,1767924642612,-626.530657,0.00022628,2]
[401096858,1767924642621,-151.0,0.00022628,2]
[401096860,1767924642633,-156.980802,0.00022628,2]
[401096861,1767924642646,-31110.0,0.00022628,2]
[401096864,1767924642656,-496.47127164,0.00022628,2]
[401096866,1767924642672,-151.0,0.00022628,2]
[401096868,1767924642686,-2398.4119403,0.00022628,2]
[401096870,1767924642695,-163.19,0.000228,7]
[401096872,1767924642709,-163.82,0.000228,7]
[401096874,1767924642720,-1010.0,0.000228,4]
[401096876,1767924642729,-1011.29,0.000228,5]
[401096877,1767924642738,-151.0,0.000229,5]
[401096879,1767924642747,-420.2,0.00022985,2]
[401096881,1767924642756,-500.0,0.00022989,2]
[401096884,1767924642766,-500.0,0.00022989,2]
[401096885,1767924642775,-335.73176522,0.00022989,2]
[401096887,1767924642784,-151.0,0.0002299,2]
[401096889,1767924642793,-151.0,0.0002299,2]
[401096891,1767924642802,-151.0,0.0002299,2]
[401096893,1767924642811,-151.0,0.0002299,2]
[401096895,1767924642820,-151.0,0.0002299,2]
[401096897,1767924642829,-152.533072,0.0002299,2]
[401096899,1767924642838,-285.260834,0.0002299,2]
[401096901,1767924642846,-151.0,0.0002299,2]
[401096903,1767924642855,-151.0,0.0002299,2]
[401096905,1767924642865,-191.201812,0.0002299,2]
[401096907,1767924642874,-151.0,0.0002299,2]
[401096909,1767924642883,-151.0,0.0002299,2]
[401096911,1767924642891,-151.0,0.0002299,2]
[401096913,1767924642900,-151.0,0.00023,8]
[401096915,1767924642909,-151.0,0.00023,8]
[401096917,1767924642918,-151.0,0.00023176,2]
[401096919,1767924642927,-151.0,0.00023176,2]
[401096921,1767924642936,-151.0,0.00023176,2]
[401096923,1767924642945,-151.0,0.00023176,2]
[401096925,1767924642954,-151.0,0.00023176,2]
[401096927,1767924642965,-151.0,0.00023176,2]
[401096929,1767924642974,-169.632255,0.00023176,2]
[401096931,1767924642984,-151.0,0.00023176,2]
[401096933,1767924642996,-151.0,0.00023176,2]
[401096934,1767924643005,-151.0,0.00023176,2]
[401096936,1767924643014,-151.0,0.00023176,2]
[401096938,1767924643023,-151.0,0.00023176,2]
[401096940,1767924643032,-1369.689816,0.00023176,2]
[401096942,1767924643041,-1369.689816,0.00023176,2]
[401096944,1767924643050,-1369.689816,0.00023176,2]
[401096946,1767924643059,-1914.381293,0.00023176,2]
[401096948,1767924643068,-1369.689816,0.00023176,2]
[401096951,1767924643077,-1914.381293,0.00023176,2]
[401096954,1767924643086,-1914.381293,0.00023176,2]
[401096957,1767924643095,-1914.381293,0.00023176,2]
[401096959,1767924643104,-606.371409,0.00023176,2]
[401096961,1767924643113,-221.941164,0.00023176,2]
[401096963,1767924643122,-606.371409,0.00023176,2]
[401096965,1767924643131,-221.941164,0.00023176,2]
[401096967,1767924643139,-606.371409,0.00023176,2]
[401096969,1767924643148,-221.941164,0.00023176,2]
[401096971,1767924643157,-606.371409,0.00023176,2]
[401096973,1767924643166,-221.941164,0.00023176,2]
[401096975,1767924643175,-32261.07,0.00023176,2]
[401096977,1767924643184,-514.84070869,0.00023176,2]
[401096979,1767924643193,-151.0,0.00023176,2]
[401096981,1767924643202,-2487.15318209,0.00023176,2]
[401096982,1767924643211,-151.0,0.000232,10]
[401096984,1767924643220,-151.0,0.000232,5]
[401096986,1767924643229,-519.17,0.000232,7]
[401096988,1767924643238,-151.0,0.00023251,2]
[401096990,1767924643247,-151.0,0.00023251,2]
[401096992,1767924643257,-582.74839336,0.00023273,2]
[401096994,1767924643266,-908.43,0.000233,14]
[401096996,1767924643275,-619.25363932,0.0002339,14]
[401096998,1767924643284,-322.6107,0.00023449,2]
[401097000,1767924643293,-181.76225645,0.00023449,2]
[401097002,1767924643304,-151.0,0.00023454,2]
[401097004,1767924643313,-151.0,0.00023454,2]
[401097006,1767924643323,-155.260536,0.00023454,2]
[401097008,1767924643331,-151.0,0.00023454,2]
[401097010,1767924643340,-151.0,0.00023454,2]
[401097012,1767924643350,-151.0,0.00023454,2]
[401097014,1767924643359,-181.573329,0.00023454,2]
[401097016,1767924643368,-151.0,0.00023454,2]
[401097018,1767924643377,-151.0,0.00023454,2]
[401097020,1767924643386,-151.0,0.00023454,2]
[401097022,1767924643395,-151.0,0.00023454,2]
[401097024,1767924643404,-151.0,0.00023454,2]
[401097026,1767924643412,-151.0,0.00023454,2]
[401097028,1767924643422,-626.530657,0.00023454,2]
[401097030,1767924643431,-626.530657,0.00023454,2]
[401097032,1767924643440,-626.530657,0.00023454,2]
[401097033,1767924643449,-626.530657,0.00023454,2]
[401097035,1767924643458,-151.0,0.00023454,2]
[401097037,1767924643467,-376.9815269,0.0002349,2]
[401097039,1767924643476,-151.0,0.00023564,2]
[401097041,1767924643485,-151.0,0.00023564,2]
[401097043,1767924643494,-524.9282027,0.00023575,2]
[401097045,1767924643504,-2097.61309799,0.00023575,2]
[401097047,1767924643514,-919.31885187,0.00023575,2]
[401097051,1767924643655,-3677.27540747,0.00023575,2]
[401097052,1767924643666,-268.11977249,0.00023575,2]
[401097053,1767924643677,-1072.47908995,0.00023575,2]
[401097054,1767924643687,-2413.07795238,0.00023575,2]
[401097055,1767924643696,-4289.91635978,0.00023575,2]
[401097056,1767924643706,-264.224,0.00023575,2]
[401097057,1767924643715,-264.224,0.00023575,2]
[401097058,1767924643724,-264.224,0.00023575,2]
[401097059,1767924643733,-264.224,0.00023575,2]
[401097060,1767924643742,-613.06758683,0.00023575,2]
[401097061,1767924643751,-2452.27034732,0.00023575,2]
[401097062,1767924643761,-151.0,0.00023575,2]
[401097063,1767924643770,-268.109172,0.00023575,2]
[401097064,1767924643779,-151.0,0.00023575,2]
[401097065,1767924643788,-151.0,0.00023575,2]
[401097066,1767924643798,-465.598169,0.00023575,2]
[401097067,1767924643807,-3684.236752,0.00023575,2]
[401097068,1767924643817,-465.598169,0.00023575,2]
[401097069,1767924643826,-3684.236752,0.00023575,2]
[401097070,1767924643838,-465.598169,0.00023575,2]
[401097071,1767924643847,-3684.236752,0.00023575,2]
[401097072,1767924643856,-465.598169,0.00023575,2]
[401097073,1767924643866,-3684.236752,0.00023575,2]
[401097074,1767924643875,-151.0,0.00023575,2]
[401097075,1767924643885,-6702.99431216,0.00023575,2]
[401097076,1767924643894,-151.0,0.000236,6]
[401097077,1767924643904,-33454.72959,0.00023724,2]
[401097078,1767924643913,-533.88981491,0.00023724,2]
[401097079,1767924643923,-151.0,0.00023724,2]
[401097080,1767924643932,-2579.17784983,0.00023724,2]
[401097081,1767924643941,-151.0,0.00023729,2]
[401097082,1767924643950,-151.0,0.00023729,2]
[401097083,1767924643959,-152.598539,0.00023729,2]
[401097084,1767924643969,-8265.59579715,0.00023783,2]
[401097085,1767924643978,-9642.6594977,0.00023783,2]
[401097086,1767924643987,-6056.68890643,0.000238,5]
[401097087,1767924643996,-151.0,0.000238,2]
[401097088,1767924644006,-151.0,0.000238,2]
[401097089,1767924644015,-151.0,0.000238,2]
[401097090,1767924644025,-151.0,0.000238,2]
[401097091,1767924644034,-151.0,0.000238,2]
[401097092,1767924644044,-151.0,0.000238,2]
[401097093,1767924644053,-151.0,0.000238,2]
[401097094,1767924644063,-11481.83496294,0.000238,5]
[401097095,1767924644071,-2804.03149837,0.00023909,2]
[401097096,1767924644080,-151.0,0.00023909,2]
[401097097,1767924644089,-151.0,0.00023909,2]
[401097098,1767924644098,-151.0,0.00023909,2]
[401097099,1767924644107,-183.114398,0.00023909,2]
[401097100,1767924644117,-1369.689816,0.00023909,2]
[401097101,1767924644126,-1369.689816,0.00023909,2]
[401097102,1767924644135,-1369.689816,0.00023909,2]
[401097103,1767924644144,-1914.381293,0.00023909,2]
[401097104,1767924644153,-1369.689816,0.00023909,2]
[401097105,1767924644163,-1914.381293,0.00023909,2]
[401097106,1767924644173,-1914.381293,0.00023909,2]
[401097108,1767924644183,-1914.381293,0.00023909,2]
[401097109,1767924644192,-606.371409,0.00023909,2]
[401097110,1767924644201,-221.941164,0.00023909,2]
[401097111,1767924644211,-606.371409,0.00023909,2]
[401097112,1767924644221,-221.941164,0.00023909,2]
[401097113,1767924644230,-606.371409,0.00023909,2]
[401097114,1767924644239,-221.941164,0.00023909,2]
[401097115,1767924644248,-606.371409,0.00023909,2]
[401097116,1767924644258,-221.941164,0.00023909,2]
[401097118,1767924644267,-4039.03351323,0.00023914,5]
[401097120,1767924644276,-626.530657,0.00023914,2]
[401097121,1767924644285,-626.530657,0.00023914,2]
[401097122,1767924644294,-626.530657,0.00023914,2]
[401097123,1767924644303,-626.530657,0.00023914,2]
[401097124,1767924644312,-151.0,0.00023914,2]
[401097125,1767924644321,-151.0,0.0002399,2]
[401097126,1767924644330,-151.0,0.0002399,2]
[401097127,1767924644339,-151.0,0.0002399,2]
[401097128,1767924644349,-151.0,0.0002399,2]
[401097129,1767924644359,-151.0,0.0002399,2]
[401097130,1767924644367,-155.308054,0.0002399,2]
[401097131,1767924644376,-1104.0,0.00024,2]
[401097132,1767924644387,-31681.21948884,0.00024,5]
[401097133,1767924644398,-151.0,0.00024,2]
[401097134,1767924644411,-151.0,0.00024,2]
[401097135,1767924644421,-264.224,0.00024,2]
[401097136,1767924644430,-264.224,0.00024,2]
[401097137,1767924644440,-264.224,0.00024,2]
[401097138,1767924644450,-264.224,0.00024,2]
[401097139,1767924644460,-151.0,0.00024,2]
[401097140,1767924644470,-151.0,0.00024,2]
[401097141,1767924644479,-151.0,0.00024,2]
[401097142,1767924644488,-465.598169,0.00024,2]
[401097143,1767924644498,-3684.236752,0.00024,2]
[401097144,1767924644507,-465.598169,0.00024,2]
[401097145,1767924644516,-3684.236752,0.00024,2]
[401097146,1767924644526,-465.598169,0.00024,2]
[401097147,1767924644535,-3684.236752,0.00024,2]
[401097148,1767924644544,-465.598169,0.00024,2]
[401097149,1767924644553,-3684.236752,0.00024,2]
[401097150,1767924644562,-151.0,0.00024,2]
[401097151,1767924644572,-151.0,0.00024,5]
[401097152,1767924644582,-151.0,0.00024,9]
[401097153,1767924644591,-151.0,0.00024002,2]
[401097154,1767924644600,-151.0,0.00024002,2]
[401097155,1767924644609,-152.684043,0.00024002,2]
[401097156,1767924644619,-232.079756,0.00024002,2]
[401097157,1767924644633,-184.675382,0.00024002,2]
[401097158,1767924644645,-151.0,0.00024002,2]
[401097159,1767924644654,-151.0,0.00024002,2]
[401097160,1767924644664,-358479.90977658,0.00024009,2]
[401097161,1767924644673,-151.0,0.00024009,2]
[401097162,1767924644682,-151.0,0.00024009,2]
[401097163,1767924644692,-151.0,0.00024009,2]
[401097164,1767924644700,-151.0,0.00024009,2]
[401097165,1767924644709,-151.0,0.00024009,2]
[401097166,1767924644718,-151.0,0.00024009,2]
[401097167,1767924644727,-151.0,0.00024009,2]
[401097168,1767924644736,-151.0,0.00024009,2]
[401097169,1767924644746,-151.0,0.00024009,2]
[401097170,1767924644755,-218.790311,0.00024009,2]
[401097171,1767924644764,-249.396348,0.00024009,2]
[401097172,1767924644774,-151.0,0.00024009,2]